[Event "12th National Amateur Chess-ch 2025"]
[Site "Bihar"]
[Date "2025.03.26"]
[Round "2.16"]
[White "Pradiksha P S"]
[Black "Marium Fatima"]
[Result "0-1"]
[Annotator "NA RC"]
[ECO "C11"]
[WhiteElo "1789"]
[BlackElo "1881"]
[PlyCount "130"]
[EventDate "2025.03.25"]
[EventCountry "IND"]
[SourceTitle "playchess.com"]
[Source "ChessBase"]
[SourceQuality "1"]
[TimeControl "5400+30"]

1. e4 {[%emt 0:00:22]} e6 {[%emt 0:00:06]} 2. d4 {[%emt 0:00:13]} d5 {[%emt 0:00:05]} 3. Nc3 {[%emt 0:00:15]} Nf6 {[%emt 0:00:48]} 4. e5 {[%emt 0:00:21]} Nfd7 {[%emt 0:00:02]} 5. f4 {[%emt 0:00:15]} c5 {[%emt 0:00:44]} 6. Nf3 {[%emt 0:00:10]} Nc6 {[%emt 0:01:03]} 7. Be3 {[%emt 0:00:11]} a6 {[%emt 0:00:33]} 8. Qd2 {[%emt 0:00:21]} b5 {[%emt 0:00:34]} 9. dxc5 {[%emt 0:00:45]} Bxc5 {[%emt 0:00:33]} 10. O-O-O {[%emt 0:03:04]} Qb6 {[%emt 0:08:05]} 11. Bg1 {[%emt 0:10:31]} O-O {[%emt 0:02:02]} 12. Bd3 {[%emt 0:01:17]} f6 {[%emt 0:08:01]} 13. Qe1 {[%emt 0:03:16]} f5 {[%emt 0:10:46]} 14. g4 {[%emt 0:05:47]} Nb4 {[%emt 0:05:45]} 15. gxf5 {[%emt 0:07:06]} Nxd3+ {[%emt 0:01:43]} 16. Rxd3 {[%emt 0:00:15]} Rxf5 {[%emt 0:00:55]} 17. Qg3 {[%emt 0:02:31]} Nf8 {[%emt 0:02:31]} 18. Nh4 {[%emt 0:09:16]} Rf7 {[%emt 0:02:04]} 19. f5 {[%emt 0:04:19]} Bxg1 {[%emt 0:11:29]} 20. Rxg1 {[%emt 0:00:17]} exf5 {[%emt 0:03:36]} 21. Nxd5 {[%emt 0:01:52]} Qh6+ {[%emt 0:01:58]} 22. Kb1 {[%emt 0:01:01]} f4 {[%emt 0:02:04]} 23. Qg2 {[%emt 0:04:31]} Rb8 {[%emt 0:08:49]} 24. Nf3 {[%emt 0:07:05]} Bf5 {[%emt 0:03:47]} 25. Nf6+ {[%emt 0:09:10]} Kh8 {[%emt 0:03:30]} 26. Rd6 {[%emt 0:01:32]} Ne6 {[%emt 0:05:05]} 27. Ng4 {[%emt 0:11:41]} Qh5 {[%emt 0:01:02]} 28. Nf2 {[%emt 0:01:15]} Rc7 {[%emt 0:01:23]} 29. Nd3 {[%emt 0:04:44]} Re8 {[%emt 0:02:13]} 30. Qf2 {[%emt 0:02:09]} Rec8 {[%emt 0:02:22]} 31. Nd4 {[%emt 0:03:57]} Bxd3 {[%emt 0:04:05]} 32. cxd3 {[%emt 0:02:33]} Nc5 {[%emt 0:00:45]} 33. Nf3 {[%emt 0:01:23]} Qf5 {[%emt 0:01:47]} 34. Qd4 {[%emt 0:00:56]} Nb7 {[%emt 0:04:27]} 35. Rd5 {[%emt 0:00:42]} Qg4 {[%emt 0:00:09]} 36. Qf2 {[%emt 0:02:24]} Qe6 {[%emt 0:00:11]} 37. Qd4 {[%emt 0:00:10]} Qc6 {[%emt 0:01:13]} 38. a3 {[%emt 0:00:29]} a5 {[%emt 0:01:25]} 39. Ng5 Qc2+ {[%emt 0:01:13]} 40. Ka1 {[%emt 0:01:38]} b4 {[%emt 0:00:27]} 41. Qe4 {[%emt 0:00:28]} g6 {[%emt 0:00:40]} 42. e6 {[%emt 0:00:37]} b3 {[%emt 0:00:32]} 43. Nf7+ {[%emt 0:00:38]} Rxf7 {[%emt 0:00:40]} 44. Qe5+ {[%emt 0:00:03]} Rg7 {[%emt 0:00:04]} 45. Rb1 {[%emt 0:00:04]} Qc7 {[%emt 0:00:30]} 46. Qd4 {[%emt 0:00:20]} Rd8 {[%emt 0:00:37]} 47. Re1 {[%emt 0:01:03]} Rxd5 {[%emt 0:00:27]} 48. Qxd5 {[%emt 0:00:06]} a4 {[%emt 0:00:26]} 49. Qd4 {[%emt 0:00:39]} Qd6 {[%emt 0:00:57]} 50. Qxg7+ {[%emt 0:00:33]} Kxg7 {[%emt 0:00:07]} 51. e7 {[%emt 0:00:04]} f3 {[%emt 0:01:07]} 52. e8=Q {[%emt 0:00:55]} f2 {[%emt 0:00:21]} 53. Re7+ {[%emt 0:00:21]} Kh6 {[%emt 0:00:04]} 54. Qf8+ {[%emt 0:00:05]} Kg5 {[%emt 0:00:07]} 55. h4+ {[%emt 0:00:09]} Kg4 {[%emt 0:01:05]} 56. Qc8+ {[%emt 0:01:56]} Kg3 {[%emt 0:01:03]} 57. Re3+ {[%emt 0:00:15]} Kf4 {[%emt 0:00:02]} 58. Re4+ {[%emt 0:00:04]} Kg3 {[%emt 0:00:17]} 59. Qg4+ {[%emt 0:00:04]} Kh2 {[%emt 0:00:02]} 60. Rf4 {[%emt 0:01:24]} Qc5 {[%emt 0:00:42]} 61. Qd1 {[%emt 0:00:41]} Qe3 {[%emt 0:01:03]} 62. Re4 {[%emt 0:00:25]} Qg3 {[%emt 0:00:09]} 63. h5 {[%emt 0:00:42]} g5 {[%emt 0:00:32]} 64. Re2 {[%emt 0:00:37]} Qg1 {[%emt 0:00:21]} 65. Rd2 {[%emt 0:00:08]} Kg2 {[%emt 0:00:23]} 0-1

[Event "12th National Amateur Chess-ch 2025"]
[Site "Bihar"]
[Date "2025.03.26"]
[Round "2.17"]
[White "Hunsika M"]
[Black "Aayusree Sarkar"]
[Result "0-1"]
[Annotator "NA RC"]
[ECO "A84"]
[WhiteElo "1520"]
[BlackElo "1677"]
[PlyCount "110"]
[EventDate "2025.03.25"]
[EventCountry "IND"]
[SourceTitle "playchess.com"]
[Source "ChessBase"]
[SourceQuality "1"]
[TimeControl "5400+30"]

1. d4 {[%emt 0:00:08]} d5 {[%emt 0:00:23]} 2. c4 {[%emt 0:01:08]} e6 {[%emt 0:00:14]} 3. Nc3 {[%emt 0:00:29]} f5 {[%emt 0:00:20]} 4. Nf3 {[%emt 0:00:25]} Nf6 {[%emt 0:00:15]} 5. Bg5 {[%emt 0:00:44]} c6 {[%emt 0:00:39]} 6. cxd5 {[%emt 0:04:50]} exd5 {[%emt 0:00:17]} 7. e3 {[%emt 0:01:13]} Be7 {[%emt 0:00:24]} 8. Ne5 {[%emt 0:06:22]} O-O {[%emt 0:00:47]} 9. Bd3 {[%emt 0:05:22]} Ne4 {[%emt 0:07:50]} 10. Bxe7 {[%emt 0:01:58]} Qxe7 {[%emt 0:00:16]} 11. Qb3 {[%emt 0:08:11]} Kh8 {[%emt 0:00:34]} 12. a3 {[%emt 0:04:01]} Nd7 {[%emt 0:01:51]} 13. Nf3 {[%emt 0:03:07]} f4 {[%emt 0:08:14]} 14. Qb4 {[%emt 0:08:25]} Qe8 {[%emt 0:03:12]} 15. Bxe4 {[%emt 0:06:58]} dxe4 {[%emt 0:00:13]} 16. Ne5 {[%emt 0:02:45]} a5 {[%emt 0:01:11]} 17. Qc4 {[%emt 0:04:22]} Nxe5 {[%emt 0:01:29]} 18. dxe5 {[%emt 0:00:35]} fxe3 {[%emt 0:00:09]} 19. fxe3 {[%emt 0:01:04]} Qxe5 {[%emt 0:02:44]} 20. Qxe4 {[%emt 0:03:28]} Qh5 {[%emt 0:05:23]} 21. Rf1 {[%emt 0:05:53]} Re8 {[%emt 0:14:01]} 22. h3 {[%emt 0:10:14]} Bxh3 {[%emt 0:03:13]} 23. Qf4 {[%emt 0:05:12]} Bxg2 {[%emt 0:01:47]} 24. Rg1 {[%emt 0:00:33]} Qf3 {[%emt 0:01:32]} 25. Qxf3 {[%emt 0:01:10]} Bxf3 {[%emt 0:00:10]} 26. Kf2 {[%emt 0:00:06]} Bh5 {[%emt 0:00:20]} 27. Rh1 {[%emt 0:01:01]} Rf8+ {[%emt 0:00:36]} 28. Ke1 {[%emt 0:00:15]} g6 {[%emt 0:02:12]} 29. e4 {[%emt 0:00:38]} Rae8 {[%emt 0:01:03]} 30. Rh4 {[%emt 0:01:08]} Bf3 {[%emt 0:01:14]} 31. Kd2 {[%emt 0:00:41]} g5 {[%emt 0:00:19]} 32. Rh2 {[%emt 0:00:54]} Bxe4 {[%emt 0:00:17]} 33. Nxe4 {[%emt 0:00:10]} Rxe4 {[%emt 0:00:06]} 34. Rah1 {[%emt 0:00:07]} Rd8+ {[%emt 0:00:37]} 35. Kc1 {[%emt 0:00:24]} Rd7 {[%emt 0:00:22]} 36. Rh5 {[%emt 0:00:15]} Rg7 {[%emt 0:00:36]} 37. Rf1 {[%emt 0:00:44]} Re8 {[%emt 0:00:09]} 38. Rg1 {[%emt 0:00:25]} g4 {[%emt 0:00:08]} 39. Rh4 {[%emt 0:02:44]} g3 {[%emt 0:00:12]} 40. Rg2 {[%emt 0:00:55]} Rf8 {[%emt 0:00:16]} 41. Rh3 {[%emt 0:00:34]} Rf3 {[%emt 0:00:50]} 42. Kb1 {[%emt 0:00:57]} Rg5 {[%emt 0:00:50]} 43. Ka2 {[%emt 0:00:12]} h5 {[%emt 0:00:56]} 44. Rd2 {[%emt 0:00:14]} Rf8 {[%emt 0:01:10]} 45. Rg2 {[%emt 0:00:21]} Rf3 {[%emt 0:00:45]} 46. Rd2 {[%emt 0:00:15]} Kg7 {[%emt 0:00:07]} 47. Rg2 {[%emt 0:00:24]} Kg6 {[%emt 0:00:18]} 48. Ka1 {[%emt 0:00:29]} Rg4 {[%emt 0:00:19]} 49. Ka2 {[%emt 0:00:11]} h4 {[%emt 0:00:13]} 50. Ka1 {[%emt 0:00:26]} Rf1+ {[%emt 0:00:22]} 51. Ka2 {[%emt 0:00:05]} Kg5 {[%emt 0:00:18]} 52. Kb3 {[%emt 0:00:15]} Rf3+ {[%emt 0:00:12]} 53. Ka2 {[%emt 0:00:04]} Rf2 {[%emt 0:00:05]} 54. Rxf2 {[%emt 0:00:14]} gxf2 {[%emt 0:00:05]} 55. Rf3 {[%emt 0:00:06]} Rf4 {[%emt 0:00:16]} 0-1

[Event "12th National Amateur Chess-ch 2025"]
[Site "Bihar"]
[Date "2025.03.26"]
[Round "2.18"]
[White "Vaishnavi Radhakrishnan"]
[Black "Kiran Kumari"]
[Result "1-0"]
[Annotator "NA RC"]
[ECO "B13"]
[WhiteElo "1658"]
[BlackElo "1520"]
[PlyCount "71"]
[EventDate "2025.03.25"]
[EventCountry "IND"]
[SourceTitle "playchess.com"]
[Source "ChessBase"]
[SourceQuality "1"]
[TimeControl "5400+30"]

1. e4 {[%emt 0:00:26]} c6 {[%emt 0:00:36]} 2. d4 {[%emt 0:01:12]} d5 {[%emt 0:00:46]} 3. exd5 {[%emt 0:00:45]} cxd5 {[%emt 0:00:37]} 4. Nf3 {[%emt 0:00:26]} e6 {[%emt 0:01:10]} 5. Bd3 {[%emt 0:00:15]} h6 {[%emt 0:01:02]} 6. Nc3 {[%emt 0:02:34]} Nc6 {[%emt 0:01:24]} 7. O-O {[%emt 0:04:51]} Nf6 {[%emt 0:00:55]} 8. a3 {[%emt 0:01:33]} Bd6 {[%emt 0:01:54]} 9. b4 {[%emt 0:01:41]} a6 {[%emt 0:02:08]} 10. Bb2 {[%emt 0:02:02]} Qc7 {[%emt 0:02:40]} 11. h3 {[%emt 0:00:37]} g5 {[%emt 0:02:41]} 12. Re1 {[%emt 0:01:57]} g4 {[%emt 0:02:16]} 13. hxg4 {[%emt 0:01:20]} Ne7 {[%emt 0:03:18]} 14. Ne5 {[%emt 0:03:48]} Rg8 {[%emt 0:03:43]} 15. Be2 {[%emt 0:02:59]} Nc6 {[%emt 0:06:55]} 16. Bf3 {[%emt 0:11:14]} Nd7 {[%emt 0:05:48]} 17. Nxd5 {[%emt 0:02:34]} Qd8 {[%emt 0:06:16]} 18. Nxd7 {[%emt 0:01:25]} Bxd7 {[%emt 0:00:54]} 19. c4 {[%emt 0:00:50]} Be7 {[%emt 0:02:48]} 20. Nxe7 {[%emt 0:00:42]} Nxe7 {[%emt 0:06:11]} 21. d5 {[%emt 0:02:05]} Ng6 {[%emt 0:06:01]} 22. dxe6 {[%emt 0:04:30]} fxe6 {[%emt 0:01:35]} 23. Bxb7 {[%emt 0:09:44]} Ra7 {[%emt 0:00:36]} 24. Bd5 {[%emt 0:00:54]} Nf4 {[%emt 0:07:17]} 25. g3 {[%emt 0:02:17]} Nxd5 {[%emt 0:04:14]} 26. Qxd5 {[%emt 0:01:09]} Rg5 {[%emt 0:03:12]} 27. Qd4 {[%emt 0:00:42]} Qa8 {[%emt 0:03:10]} 28. Qh8+ {[%emt 0:01:09]} Kf7 {[%emt 0:00:42]} 29. Qh7+ {[%emt 0:00:31]} Ke8 {[%emt 0:00:54]} 30. Bf6 {[%emt 0:02:15]} Bc8 {[%emt 0:01:04]} 31. Qh8+ {[%emt 0:04:48]} Kf7 {[%emt 0:00:48]} 32. Bxg5 {[%emt 0:00:14]} hxg5 {[%emt 0:00:32]} 33. Rad1 {[%emt 0:00:51]} Re7 {[%emt 0:01:34]} 34. Rd8 {[%emt 0:01:25]} Qb7 {[%emt 0:02:03]} 35. Rf8+ {[%emt 0:00:22]} Kg6 {[%emt 0:00:36]} 36. Rf6# {[%emt 0:00:17]} 1-0

[Event "12th National Amateur Chess-ch 2025"]
[Site "Bihar"]
[Date "2025.03.26"]
[Round "2.19"]
[White "Hiya Garg"]
[Black "Disha U A"]
[Result "0-1"]
[Annotator "NA RC"]
[ECO "A08"]
[WhiteElo "1518"]
[BlackElo "1643"]
[PlyCount "92"]
[EventDate "2025.03.25"]
[EventCountry "IND"]
[SourceTitle "playchess.com"]
[Source "ChessBase"]
[SourceQuality "1"]
[TimeControl "5400+30"]

1. Nf3 {[%emt 0:00:30]} d5 {[%emt 0:00:30]} 2. g3 {[%emt 0:00:30]} c5 {[%emt 0:00:30]} 3. Bg2 {[%emt 0:00:30]} Nc6 {[%emt 0:00:30]} 4. O-O {[%emt 0:00:30]} Nf6 {[%emt 0:00:30]} 5. d3 {[%emt 0:00:30]} e5 {[%emt 0:00:30]} 6. Nbd2 {[%emt 0:00:30]} Bd6 {[%emt 0:00:30]} 7. e4 {[%emt 0:00:30]} d4 {[%emt 0:00:30]} 8. Nc4 {[%emt 0:00:30]} Bc7 {[%emt 0:00:30]} 9. a4 {[%emt 0:00:30]} O-O {[%emt 0:00:30]} 10. Ng5 {[%emt 0:00:30]} h6 {[%emt 0:00:30]} 11. Nh3 {[%emt 0:00:30]} Be6 {[%emt 0:00:30]} 12. f4 {[%emt 0:00:30]} Nxe4 {[%emt 0:00:30]} 13. Nxe5 {[%emt 0:00:30]} Nxe5 {[%emt 0:00:30]} 14. dxe4 {[%emt 0:00:30]} Bg4 {[%emt 0:00:30]} 15. Qe1 {[%emt 0:00:30]} Ba5 {[%emt 0:00:30]} 16. Qf2 {[%emt 0:00:30]} Qd7 {[%emt 0:00:30]} 17. fxe5 {[%emt 0:00:30]} Bxh3 {[%emt 0:00:30]} 18. Bxh3 {[%emt 0:00:30]} Qxh3 {[%emt 0:00:30]} 19. Ra3 {[%emt 0:00:30]} Qe6 {[%emt 0:00:30]} 20. Rf3 {[%emt 0:00:30]} Rad8 {[%emt 0:00:30]} 21. Rf5 {[%emt 0:00:30]} Rd7 {[%emt 0:00:30]} 22. Qf3 {[%emt 0:00:30]} Bd8 {[%emt 0:00:30]} 23. h4 {[%emt 0:00:30]} g6 {[%emt 0:00:30]} 24. Rf6 {[%emt 0:00:30]} Bxf6 {[%emt 0:00:30]} 25. exf6 {[%emt 0:00:30]} Re8 {[%emt 0:00:30]} 26. Re1 {[%emt 0:00:30]} Rd6 {[%emt 0:00:30]} 27. e5 {[%emt 0:00:30]} Rd5 {[%emt 0:00:30]} 28. Bf4 {[%emt 0:00:30]} c4 {[%emt 0:00:30]} 29. h5 {[%emt 0:00:30]} g5 {[%emt 0:00:30]} 30. Kh2 {[%emt 0:00:30]} Kh8 {[%emt 0:00:30]} 31. g4 {[%emt 0:00:30]} Rg8 {[%emt 0:00:30]} 32. Bg3 {[%emt 0:00:30]} d3 {[%emt 0:00:30]} 33. Qe4 {[%emt 0:00:30]} dxc2 {[%emt 0:00:30]} 34. Rc1 {[%emt 0:00:30]} Rd2+ {[%emt 0:00:30]} 35. Kh3 {[%emt 0:00:30]} Rgd8 {[%emt 0:00:30]} 36. Rxc2 {[%emt 0:00:30]} R8d4 {[%emt 0:00:30]} 37. Qf5 {[%emt 0:00:30]} Qxf5 {[%emt 0:00:30]} 38. gxf5 {[%emt 0:00:30]} Rxc2 {[%emt 0:00:30]} 39. e6 {[%emt 0:00:30]} fxe6 {[%emt 0:00:30]} 40. fxe6 {[%emt 0:00:30]} Kg8 {[%emt 0:00:30]} 41. Be5 {[%emt 0:00:30]} Rd3+ {[%emt 0:00:30]} 42. Kg4 {[%emt 0:00:30]} Re2 {[%emt 0:00:30]} 43. f7+ {[%emt 0:00:30]} Kf8 {[%emt 0:00:30]} 44. Kf5 {[%emt 0:00:30]} Rf3+ {[%emt 0:00:30]} 45. Kg6 {[%emt 0:00:30]} Rxe5 {[%emt 0:00:30]} 46. Kxh6 {[%emt 0:00:30]} Rf6+ {[%emt 0:00:30]} 0-1

[Event "12th National Amateur Chess-ch 2025"]
[Site "Bihar"]
[Date "2025.03.26"]
[Round "2.20"]
[White "Kashvy Sabharwal"]
[Black "Adiba Ullah"]
[Result "1-0"]
[Annotator "NA RC"]
[ECO "D02"]
[WhiteElo "1640"]
[BlackElo "1511"]
[PlyCount "45"]
[EventDate "2025.03.25"]
[EventCountry "IND"]
[SourceTitle "playchess.com"]
[Source "ChessBase"]
[SourceQuality "1"]
[TimeControl "5400+30"]

1. d4 {[%emt 0:00:30]} Nf6 {[%emt 0:00:30]} 2. Bf4 {[%emt 0:00:30]} d5 {[%emt 0:00:30]} 3. Nf3 {[%emt 0:00:30]} Bf5 {[%emt 0:00:30]} 4. e3 {[%emt 0:00:30]} e6 {[%emt 0:00:30]} 5. Bd3 {[%emt 0:00:30]} Bg6 {[%emt 0:00:30]} 6. Ne5 {[%emt 0:00:30]} Be4 {[%emt 0:00:30]} 7. f3 {[%emt 0:00:30]} Bg6 {[%emt 0:00:30]} 8. c4 {[%emt 0:00:30]} dxc4 {[%emt 0:00:30]} 9. Bxc4 {[%emt 0:00:30]} Nd5 {[%emt 0:00:30]} 10. Bxd5 {[%emt 0:00:30]} Qxd5 {[%emt 0:00:30]} 11. Nc3 {[%emt 0:00:30]} Qa5 {[%emt 0:00:30]} 12. Qb3 {[%emt 0:00:30]} Qb6 {[%emt 0:00:30]} 13. d5 {[%emt 0:00:30]} Qxb3 {[%emt 0:00:30]} 14. axb3 {[%emt 0:00:30]} Bc2 {[%emt 0:00:30]} 15. Nb5 {[%emt 0:00:30]} Bb4+ {[%emt 0:00:30]} 16. Kf2 {[%emt 0:00:30]} Bd6 {[%emt 0:00:30]} 17. Rhc1 {[%emt 0:00:30]} Bxb3 {[%emt 0:00:30]} 18. Nxd6+ {[%emt 0:00:30]} cxd6 {[%emt 0:00:30]} 19. Rc8+ {[%emt 0:00:30]} Ke7 {[%emt 0:00:30]} 20. Rxh8 {[%emt 0:00:30]} dxe5 {[%emt 0:00:30]} 21. Bxe5 {[%emt 0:00:30]} f6 {[%emt 0:00:30]} 22. Rxb8 {[%emt 0:00:30]} Rxb8 {[%emt 0:00:30]} 23. Bxb8 {[%emt 0:00:30]} 1-0